Cogmind - Beta 14 @@@ ROGUE MODE // 2025.03.03 @ 19:03:45 Player: Dude Result: Destroyed by H-61 Shepherd with Heavy Assault Cannon Performance ------------- Evolutions (2) 1000 Regions Visited (3) 600 Robots Destroyed (35) 175 Value Destroyed (1124) 1124 Prototype IDs (2) 40 Alien Tech Used (0) 0 Bonus (11) 11 TOTAL SCORE: 2950 Bonus ------- High Alert Combat Kills 11 Cogmind --------- Core Integrity 0/550 Matter 300/300 Energy 100/100 System Corruption 2% Temperature Cool (0) Movement Core (50) Location -8/Materials Parts ------- > --- POWER (1) -------- (None) > --- PROPULSION (3) --- (None) > --- UTILITY (4) ------ (None) > --- WEAPON (3) ------- (None) > --- INVENTORY (5) ---- Improved Utility Shielding Improved Shield Generator Pulse Rifle Heavy Laser Improved Grenade Launcher Peak State ------------ > --- POWER ------------ Deuterium Engine > --- PROPULSION ------- Light Treads Light Treads Improved Treads > --- UTILITY ---------- Large Storage Unit Improved Targeting Computer Particle Charger Improved Shield Generator > --- WEAPON ----------- Particle Gun Pulse Rifle Pulse Rifle > --- INVENTORY -------- Light Deuterium Engine Light Treads Heat Sink Compact Battery High-capacity Matter Pod Trap Scanner Signal Interpreter Launcher Guidance Computer Improved Weapon Shielding Hardened Light Armor Plating Improved Light Armor Plating Particle Gun Particle Gun Particle Gun Improved Grenade Launcher [Rating: 28] Favorites ----------- Power Deuterium Engine Engine Deuterium Engine Power Core Nuclear Core Propulsion Light Treads Treads Light Treads Leg Aluminum Leg Wheel Wheel Utility Improved Targeting Computer Device Sensor Array Storage Medium Storage Unit Processor Improved Targeting Computer Protection Improved Light Armor Plating Weapon Particle Gun Energy Gun Particle Gun Ballistic Gun Assault Rifle Launcher Improved Grenade Launcher Build | -11 -10 -9 -8 ------- Run | Yrd Mat Mat Mat Slots Evolved 4 | . . 2 2 Power . | . . . . Propulsion 1 | . . . 1 Utility 2 | . . 1 1 Weapon 1 | . . 1 . Parts Attached 85 | 5 9 22 49 Power 9 | 1 . 3 5 Engine 7 | 1 . 3 3 Core 2 | . . . 2 Reactor . | . . . . Propulsion 21 | 2 3 6 10 Treads 13 | . . 4 9 Leg 5 | . 3 2 . Wheel 3 | 2 . . 1 Hover . | . . . . Flight . | . . . . Utility 15 | 1 2 1 11 Device 5 | . 1 . 4 Storage 3 | 1 1 . 1 Processor 1 | . . . 1 Hackware . | . . . . Protection 6 | . . 1 5 Artifact . | . . . . Weapon 40 | 1 4 12 23 Energy Gun 26 | . . 6 20 Energy Cannon . | . . . . Ballistic Gun 12 | 1 4 6 1 Ballistic Cannon . | . . . . Launcher 2 | . . . 2 Special Weapon . | . . . . Impact Weapon . | . . . . Slashing Weapon . | . . . . Piercing Weapon . | . . . . Special Melee Weapon . | . . . . Unidentified Prototypes 1 | . . . 1 Parts Lost 17 | . . . 17 Power 2 | . . . 2 Propulsion 6 | . . . 6 Utility 4 | . . . 4 Weapon 5 | . . . 5 Highest Loss Streak 5 | . . . 5 To Critical Strikes . | . . . . Average Slot Usage (%) 95 | . 86 99 95 Engine 7 | . 14 11 6 Core 1 | . . . 2 Treads 20 | . . 14 25 Leg 4 | . 27 7 . Device 8 | . 2 11 8 Storage 9 | . 14 11 8 Processor 6 | . . . 9 Protection 7 | . . 10 8 Energy Gun 18 | . . 19 20 Ballistic Gun 9 | . 27 13 5 Peak Build Rating 28 | 5 8 15 28 Average Rating 18 | 4 6 13 22 On Entrance 6 | . 5 8 14 Naked Turns 4 | . . . 4 Heaviest Build 47 | 9 18 32 47 Greatest Support 63 | 20 20 40 63 Greatest Overweight (x) 10 | 1 1 1 10 Average Overweight (x) . | . . . . Largest Inventory Capacity 15 | 8 10 10 15 Average Capacity 11 | 7 8 10 12 Most Carried 15 | 7 10 10 15 Average Carried 11 | 4 8 9 12 Final Capacity 10 | 8 10 10 5 Final Carried 10 | 7 10 10 5 Class Distribution -------------------- 38% | Gunner 25% | Scavenger-Gunner 18% | Tank 14% | Mutant Dominant Class ---------------- Mutant | -10/Materials Tank | -9/Materials Gunner | -8/Materials Resources | -11 -10 -9 -8 ----------- Run | Yrd Mat Mat Mat Matter Collected 1262 | 251 69 310 632 Remotely . | . . . . Salvage Created 1159 | . 82 240 837 Parts 72 | . 12 19 41 Haulers Intercepted . | . . . . Recyclers Shooed . | . . . . Parts Field Recycled . | . . . . Retrieved Matter . | . . . . Parts Self-Destructed . | . . . . Prevented . | . . . . Kills | -11 -10 -9 -8 ------- Run | Yrd Mat Mat Mat Combat Hostiles Destroyed 29 | . 3 6 20 Guns 28 | . 3 6 19 AOE 1 | . . . 1 Classes Destroyed 7 | . 2 2 3 Worker 1 | . . . 1 Builder 1 | . . . 1 Watcher 4 | . 2 1 1 Swarmer 9 | . 3 3 3 Grunt 11 | . . 1 10 Sentry 8 | . . 2 6 Specialist 1 | . . . 1 Best Kill Streak 3 | . 3 2 3 Combat Bots Only 3 | . 3 2 2 Max Kills in Single Turn 1 | . 1 1 1 Gunslinging . | . . . . Exploded 1 | . . . 1 Melee . | . . . . Uniques/NPCs Destroyed . | . . . . Combat | -11 -10 -9 -8 -------- Run | Yrd Mat Mat Mat Hostile Shots Fired 255 | . 10 42 203 Missed 40 | . . 6 34 Damage Taken 3648 | . 73 483 3092 Core 736 | . 12 121 603 Absorbed by Shields . | . . . . Core Remaining (%) 88 | 100 95 69 . Volleys Fired 110 | 1 12 19 78 Largest 3 | 1 2 3 3 Hottest 197 | 20 40 124 197 Shots Fired 273 | 1 24 51 197 Gun 272 | 1 24 51 196 Cannon . | . . . . Launcher 1 | . . . 1 Special . | . . . . Kinetic 82 | 1 24 23 34 Thermal 177 | . . 15 162 Explosive 1 | . . . 1 Electromagnetic 13 | . . 13 . Robot Hit Streak 24 | . 3 9 24 Robot Miss Streak 4 | . 4 3 3 Penetration Max . | . . . . Secondary Targets . | . . . . Shots Hit Robots 176 | . 8 30 138 Core Hits 62 | . 5 14 43 Critical Kills . | . . . . Critical Parts Destroyed . | . . . . Critical Strikes 6 | . . . 6 Burn 6 | . . . 6 Melee Attacks . | . . . . Impact . | . . . . Slashing . | . . . . Piercing . | . . . . Sneak Attacks . | . . . . Combat Hostiles . | . . . . Follow-up Attacks . | . . . . Damage Inflicted 2553 | . 78 389 2086 Guns 2495 | . 78 382 2035 Cannons . | . . . . Explosions 58 | . . 7 51 Melee . | . . . . Ramming . | . . . . Kinetic 336 | . 78 159 99 Thermal 2027 | . . 91 1936 Explosive 51 | . . . 51 Electromagnetic 139 | . . 139 . Impact . | . . . . Slashing . | . . . . Piercing . | . . . . Highest Corruption 2 | . . . 2 Average Corruption 2 | . . . 2 Corruption Purged . | . . . . Corruption Blocked . | . . . . Overload Shots . | . . . . Overflow Damage . | . . . . Projectiles . | . . . . Explosions . | . . . . Melee . | . . . . Knockbacks . | . . . . Impact . | . . . . Kinetic . | . . . . Secondary . | . . . . Self-Inflicted Damage 22 | . . . 22 Shots 1 | . . . 1 Rammed . | . . . . Targets Rammed . | . . . . Kicked . | . . . . Crushed . | . . . . Highest Temperature 421 | . . 365 421 Average Temperature 171 | . . 146 177 Received Heat Transfer 1242 | . . 216 1026 Effects 12 | . . . 12 Shutdowns 5 | . . . 5 Interference 6 | . . . 6 Damage (minor) 1 | . . . 1 Siege Activations . | . . . . Robots Corrupted . | . . . . Combat Hostiles . | . . . . Parts Fried . | . . . . Impact Corruptions . | . . . . Robots Melted . | . . . . Combat Hostiles . | . . . . Parts Melted 7 | . . 1 6 Heat Transferred 4675 | . . 272 4403 Parts Sabotaged . | . . . . Parts Stolen . | . . . . Parts Stripped . | . . . . Power Chain Reactions 1 | . . 1 . Alert | -11 -10 -9 -8 ------- Run | Yrd Mat Mat Mat Peak Influence 411 | . 145 282 411 Initial 61 | . . 61 46 Average 121 | . 70 125 132 Maximum Alert Level 2 | . . 1 2 Low Security (%) 78 | 100 100 92 69 Level 1 19 | . . 7 27 Level 2 2 | . . . 3 Level 3 . | . . . . Level 4 . | . . . . Level 5 . | . . . . High Security . | . . . . Max Security . | . . . . Squads Dispatched 3 | . . . 3 Investigation 1 | . . . 1 Extermination . | . . . . Reinforcement 2 | . . . 2 Assault . | . . . . Garrison . | . . . . Intercept . | . . . . Searches Triggered . | . . . . Construction Impeded . | . . . . Haulers Reinforced . | . . . . Active Scanning Responses . | . . . . Cargo Convoy Interrupts . | . . . . Stealth | -11 -10 -9 -8 --------- Run | Yrd Mat Mat Mat Distress Signals 1 | . 1 . . Communications Jammed . | . . . . Distress Signals . | . . . . Times Spotted 46 | . 7 9 30 Peak Tracking Total 6 | . 3 3 6 Tactical Retreats 5 | . . 1 4 Traps | -11 -10 -9 -8 ------- Run | Yrd Mat Mat Mat Traps Triggered 2 | . 1 . 1 Indirectly . | . . . . Trap Hack Attempts . | . . . . Triggered . | . . . . Disarmed . | . . . . Reprogrammed . | . . . . Reused . | . . . . Traps Extracted . | . . . . Installed . | . . . . Triggered . | . . . . Machines | -11 -10 -9 -8 ---------- Run | Yrd Mat Mat Mat Machines Disabled 1 | . 1 . . Max in Single Turn 1 | . 1 . . Machines Repaired . | . . . . Machines Dismantled . | . . . . Machines Sabotaged . | . . . . Overloaded Fab Kills . | . . . . Hacking | -11 -10 -9 -8 --------- Run | Yrd Mat Mat Mat Machines Accessed 6 | . . 1 5 Terminals 4 | . . 1 3 Fabricators . | . . . . Repair Stations . | . . . . Recycling Units 1 | . . . 1 Scanalyzers 1 | . . . 1 Garrison Access . | . . . . Total Hacks 12 | . . 1 11 Successful 9 | . . 1 8 Failed 3 | . . . 3 Catastrophic . | . . . . Database Lockouts . | . . . . Manual 4 | . . . 4 Terminals 7 | . . 1 6 Fabricators . | . . . . Repair Stations . | . . . . Recycling Units 2 | . . . 2 Scanalyzers 3 | . . . 3 Garrison Access . | . . . . Terminal Hacks 5 | . . 1 4 Record 2 | . . . 2 Alert Level 2 | . . 1 1 Maintenance Status 1 | . . . 1 Fabricator Hacks . | . . . . Repair Station Hacks . | . . . . Recycling Unit Hacks 1 | . . . 1 Retrieve Matter 1 | . . . 1 Scanalyzer 3 | . . . 3 Insert Component 2 | . . . 2 Analyze 1 | . . . 1 Garrison Access Hacks . | . . . . Unauthorized Hacks . | . . . . Terminals . | . . . . Fabricators . | . . . . Repair Stations . | . . . . Recycling Units . | . . . . Scanalyzers . | . . . . Garrison Access . | . . . . Data Cores Recovered . | . . . . Used . | . . . . Hacking Detections 5 | . . . 5 Full Trace Events . | . . . . Feedback Events . | . . . . Feedback Blocked . | . . . . Robot Schematics Acquired . | . . . . Robots Built . | . . . . Authchips . | . . . . Time . | . . . . Total Robot Build Rating . | . . . . Part Schematics Acquired 1 | . . . 1 Parts Built . | . . . . Authchips . | . . . . Time . | . . . . Total Part Build Rating . | . . . . Parts Repaired . | . . . . Time . | . . . . Parts Recycled . | . . . . Recycled Matter . | . . . . Retrieved Matter . | . . . . Retrieved Components . | . . . . Parts Scanalyzed 1 | . . . 1 Part Schematics Acquired 1 | . . . 1 Parts Damaged . | . . . . Bothacking | -11 -10 -9 -8 ------------ Run | Yrd Mat Mat Mat Used RIF Installer . | . . . . Robots Hacked . | . . . . Non-combat . | . . . . Combat . | . . . . Robot Hacks Applied . | . . . . Relay Couplers Released . | . . . . Fabnet Peak Effective % . | . . . . Robots Rewired . | . . . . Allies Hacked . | . . . . Hacks Repelled . | . . . . Allies | -11 -10 -9 -8 -------- Run | Yrd Mat Mat Mat Total Allies . | . . . . Largest Group . | . . . . Highest-Rated Group . | . . . . Highest-Rated Ally . | . . . . Total Orders . | . . . . Ally Attacks . | . . . . Total Damage . | . . . . Kills . | . . . . Allies Corrupted . | . . . . Allies Melted . | . . . . Intel | -11 -10 -9 -8 ------- Run | Yrd Mat Mat Mat Robot Analysis Total . | . . . . Derelict Logs Recovered . | . . . . Drone Launches . | . . . . Drone Recoveries . | . . . . Exploration | -11 -10 -9 -8 ------------- Run | Yrd Mat Mat Mat Turns Passed 2576 | 58 274 521 1723 Spaces Moved 1154 | 52 160 223 719 Core 21 | 5 . . 16 Treads 804 | . . 133 671 Legs 250 | . 160 90 . Wheels 79 | 47 . . 32 Hover . | . . . . Flight . | . . . . Fastest Speed 50 | 50 120 120 50 Average Speed 149 | 80 120 166 156 Slowest Speed 550 | 100 190 190 550 Overloaded Moves . | . . . . Propulsion Burnouts . | . . . . Robots Hopped . | . . . . Cave-ins Triggered . | . . . . Exploration Rate (%) 27 | 4 27 15 62 Regions Visited 3 Branch Regions . Pre-discovered Areas . | . . . . Known Exits Taken . | . . . . Unknown Exits Taken 3 | 1 1 1 . Scrap Searched . | . . . . Spaces Dug . | . . . . Terrain Destroyed 23 | . . 8 15 Melee . | . . . . Projectile . | . . . . AOE 23 | . . 8 15 Terrain Rammed . | . . . . Walls Destroyed . | . . . . Machines Disabled . | . . . . Actions | -11 -10 -9 -8 --------- Run | Yrd Mat Mat Mat Total 1784 | 64 214 332 1174 Wait 314 | . 30 40 244 Move 1151 | 51 159 222 719 Hop . | . . . . Pick Up 54 | 7 3 12 32 Fast Attach 21 | 5 4 3 9 Attach 14 | . 1 3 10 Detach 5 | . 1 2 2 Swap 50 | . 4 16 30 Drop 65 | . . 15 50 Fire 110 | 1 12 19 78 Melee . | . . . . Ram . | . . . . Kick . | . . . . Crush . | . . . . Escape Stasis . | . . . . Rewire . | . . . . Trap . | . . . . Miscellaneous . | . . . . Route ------- -11/Scrapyard -10/Materials -9/Materials -8/Materials (discovered 1 exit: [*Fac]) History --------- Turn | Location | Event 25 | -11/Scrapyard | Discovered new exit (range 16) 59 | -11/Scrapyard | Entered Materials 307 | -10/Materials | Discovered new exit (range 4) 317 | -10/Materials | Build established: Mutant 333 | -10/Materials | Entered another Materials area 333 | -9/Materials | Evolved 2 slots: Utility x1, Weapon x1 685 | -9/Materials | Build established: Tank 787 | -9/Materials | Discovered new exit (range 10) 854 | -9/Materials | Entered another Materials area 854 | -8/Materials | Evolved 2 slots: Propulsion x1, Utility x1 1185 | -8/Materials | Build established: Scavenger-Gunner 1712 | -8/Materials | Build established: Gunner 2262 | -8/Materials | Lost 3 parts (1n2u) 2438 | -8/Materials | Discovered new exit (range 14) 2499 | -8/Materials | Core integrity fell below 50% 2503 | -8/Materials | Lost 5 parts (2p1n1u1w) 2569 | -8/Materials | Core integrity fell below 20% 2577 | -8/Materials | Destroyed by H-61 Shepherd with Heavy Assault Cannon Last Messages --------------- 02518_ Lgt. Treads destroyed. 02525_ Imp. Cooling System melted. 02525_ X-62 Marksman destroyed. 02533_ Dropped Trap Scanner. 02533_ Dropped Imp. Sensor Array. 02534_ Dropped Launcher Guidance Computer. 02534_ Dropped Imp. Weapon Shielding. 02535_ Dropped Lrg. Storage Unit. 02535_ Dropped Hrd. Light Armor Plating. 02536_ Dropped Particle Charger. 02536_ Acquired 38 matter. 02539_ Acquired Wheel. 02543_ Penetrated by Slug. 02547_ Acquired 14 matter. 02562_ Penetrated by Slug. 02566_ Wheel destroyed. 02568_ Adv. Beam Rifle destroyed. 02568_ Knocked back. 02573_ Imp. Targeting Computer destroyed. 02573_ Critical hit (Blast). Map ----- +----------------------------------------------------+ | # """ # #??????????????# #? | | # """ # #??????????????#! #? | | # # #??????????????#!! #? | | # """ [[ #= ################!! #? | | # """ #% !! ! /[!! #? | | # """ +% ################![! #? | | # *# ## #????#[! #? | | ########## ## ] """ #????# #? | | ????????# % # R" #????# #? | | ????????# # """ #????######? | | ????????# T% + ##?????????? | | ????????# # =%#?????????? | | ????????# % # [!! ##?????????? | | ????????## ## ! [#??????????? | | ?????????# ;# [ #??????????? | | ?????????# %###########??????????? | | ?????????# #????????????????????? | | ?????????# #????????????????????? | | ?????????# #????????????????????? | | ?????????# #????????????????????? | | ????????## #????????????????????? | | ????????#; #????????????????????? | | ????????##% #????????????????????? | | ??????####o %#????????????????????? | | ?????##! #????????????????????? | | ?????#! @ #????????????????????? | | ?????#! H #????????????????????? | | ?????#! #????????????????????? | | ?????#! #####????????????????????? | | ?????##! ?????????????????????????? | | ??????###?????????????????????????? | | ??????????????????????????????????? | | ??????????????????????????????????? | | | | | | | | | | | | | | | | | | | | | | | | | | | | | | | | | | | +----------------------------------------------------+ Best States ------------- Heat Dissipation 41 Energy Generation 14 Energy Capacity 275 Matter Stores 300 Matter Capacity 300 Sight Range 16 Robot Scan Range 14 Terrain Scan Density 10 Armor Coverage 150 Evasion (%) 55 Targeting Accuracy 6 Recoil Reduction 3 Particle Charging 15 Item Schematics ----------------- Adv. EMP Blaster | -8/Materials | Scanalyzed Robot Schematics ------------------ None Fabricated ------------ Nothing Alien Tech Used ----------------- None Achievements -------------- Risk Taker Safety First Uninvited Guest Challenges ------------ None Game ------ Seed ParticleFlightStripper Manual? 0 Play Time 01:48:56 Cumulative 2.5 hours Start 2025.03.02 @ 23:27:17 End 2025.03.03 @ 19:03:45 Sessions 3 Manual Loads 0 Difficulty Rogue Special Mode None Game No. 2 Rogue 2 Adventurer 0 Explorer 0 Win Type - Total 0 Types 0/0/0/0/0/0/0/0/0 Lore% 0 Gallery% 4 Achievement% 2 Wizard Run 0 Options --------- Layout 1 ASCII 0 Keyboard 0 Movement Mouse Keybinds 0 Fullscreen 1 Font 32/SmallcapsGlow Map View 50x35 Zoom Use 0% Tactical HUD 1 Map Filters NONE Filters NONE Steam 1 RUN: 1e59115f-e83b-487b-b921-0b615b701d31